bitfinex/quotes_ETHUSD_20250906
["timestamp","ask_amount","ask_price","bid_price","bid_amount"]
[1757177049039,1e-08,4280.8,4280.7,16.36051234]
[1757177051764,1e-08,4280.8,4280.7,12.23351234]
[1757177051966,1e-08,4280.8,4280.7,16.35851234]
[1757177053574,1e-08,4280.8,4280.7,10.01451234]
[1757177053775,0.28560001,4280.8,4280.7,3.23567864]
[1757177053976,0.28560001,4280.8,4280.7,6.46006653]
[1757177055500,0.28560001,4280.8,4280.7,7.49860921]
[1757177055674,0.28560001,4280.8,4280.7,11.62160921]
[1757177055675,2.58990001,4280.8,4280.7,11.62160921]
[1757177055873,2.72112903,4280.8,4280.7,11.62160921]
[1757177057606,0.88162903,4280.8,4280.7,11.62160921]
[1757177057811,0.41682903,4280.8,4280.7,11.62160921]
[1757177058110,0.28560001,4280.8,4280.7,11.62160921]
[1757177058674,1e-08,4280.8,4280.7,7.81200921]
[1757177058977,1e-08,4280.8,4280.7,11.93300921]
[1757177059614,1e-08,4280.8,4280.7,13.35992224]
[1757177060295,2.12510001,4280.8,4280.7,2.33606653]
[1757177060498,2.72112903,4280.8,4280.7,6.45606653]
[1757177062333,0.88162903,4280.8,4280.7,6.45606653]
[1757177063650,0.41682903,4280.8,4280.7,6.45606653]
[1757177063955,0.28560001,4280.8,4280.7,6.45606653]
[1757177066165,1e-08,4280.8,4280.7,6.45606653]
[1757177066442,1e-08,4280.8,4280.7,6.76946653]
[1757177067769,0.18876328,4282.3,4281.7,2.33552093]
[1757177068058,0.65356328,4282.3,4281.7,6.45152093]
[1757177068216,0.65356328,4282.3,4281.7,2.64892093]
[1757177068416,0.65356328,4282.3,4281.7,6.76492093]
[1757177069345,1.00493216,4282.0,4281.7,6.76492093]
[1757177069706,1.00493216,4282.0,4281.7,6.93947245]
[1757177072354,1.00493216,4282.0,4281.9,2.33541184]
[1757177072561,1.00493216,4282.0,4281.9,6.45041184]
[1757177072718,1.00493216,4282.0,4281.9,6.76381184]
[1757177074359,1.00493216,4282.0,4281.9,8.63021184]
[1757177074547,1.00493216,4282.0,4281.9,6.76381184]
[1757177074736,1.00493216,4282.0,4281.9,8.7801452]
[1757177075160,1.00493216,4282.0,4281.9,8.4667452]
[1757177075762,1.00493216,4282.0,4281.9,8.7801452]
[1757177077787,1.00493216,4282.0,4281.9,4.6651452]
[1757177077969,1.29053216,4282.0,4281.9,8.4637452]
[1757177078455,1.29053216,4282.0,4281.9,6.44641184]
[1757177079277,1.00493216,4282.0,4281.9,6.44641184]
[1757177079485,1.29053216,4282.0,4281.9,6.44641184]
[1757177079645,1.00493216,4282.0,4281.9,6.75981184]
[1757177082496,1.00493216,4282.0,4281.9,6.44641184]
[1757177083006,1.00493216,4282.0,4281.9,6.74701184]
[1757177084607,1.00493216,4282.0,4281.9,6.44441184]
[1757177084977,1.00493216,4282.0,4281.9,6.74501184]
[1757177086205,1.00493216,4282.0,4281.9,6.44441184]
[1757177086530,1.00493216,4282.0,4281.9,6.74501184]
[1757177086695,1.00493216,4282.0,4281.9,8.36636908]
[1757177087793,3.46423216,4282.0,4281.9,2.33541184]
[1757177087987,3.46423216,4282.0,4281.9,6.44341184]
[1757177088290,3.46423216,4282.0,4281.9,2.33541184]
[1757177088709,3.59520238,4282.0,4281.9,2.33541184]
[1757177089294,3.59520238,4282.0,4281.8,6.44246639]
[1757177089295,3.59520238,4282.0,4281.8,4.107]
[1757177089628,2.28087022,4281.9,4281.8,6.44246639]
[1757177089821,2.66737634,4281.9,4281.8,6.44246639]
[1757177090016,2.97677634,4281.9,4281.8,6.44246639]
[1757177090231,2.97677634,4281.9,4281.8,2.33546639]
[1757177091360,2.97677634,4281.9,4281.6,4.106]
[1757177091361,2.97677634,4281.9,4281.7,2.33550766]
[1757177091517,2.28087022,4281.8,4281.6,6.44156145]
[1757177091712,0.13097022,4281.7,4281.6,6.44156145]
[1757177091912,2.59027022,4281.7,4281.6,2.33556145]
[1757177093357,2.59027022,4281.7,4280.6,4.13610522]
[1757177093550,0.13097022,4281.6,4281.4,2.33566516]
[1757177093846,2.4593,4281.5,4281.4,2.33566516]
[1757177094047,2.59027022,4281.5,4281.4,2.33566516]
[1757177094348,2.59027022,4281.5,4281.3,2.33572999]
[1757177094524,2.28087022,4281.4,4281.3,2.33572999]
[1757177094720,2.59027022,4281.4,4281.3,2.33572999]
[1757177098348,2.4593,4281.4,4281.3,2.33572999]
[1757177098654,2.5904812,4281.4,4281.3,2.33572999]
[1757177100268,0.8857812,4281.4,4281.3,2.33572999]
[1757177101071,0.4405812,4281.4,4281.3,2.33572999]
[1757177101290,0.1311812,4281.7,4281.6,2.33557548]
[1757177101439,0.38650612,4281.9,4281.8,2.33546639]
[1757177101440,0.51768732,4281.9,4281.8,2.33546639]
[1757177101643,0.51768732,4281.9,4281.8,6.43846639]
[1757177101949,0.51768732,4281.9,4281.8,6.73906639]
[1757177102576,0.51768732,4281.9,4281.8,6.43846639]
[1757177103349,0.51768732,4281.9,4281.8,6.43746639]
[1757177104667,0.51768732,4281.9,4281.8,6.73806639]
[1757177105142,0.51768732,4281.9,4281.8,8.89926639]
[1757177105788,0.51768732,4281.9,4281.8,10.53900484]
[1757177106656,0.38650612,4281.9,4281.8,10.53900484]
[1757177109817,0.38650612,4281.9,4281.8,8.37780484]
[1757177116123,0.38650612,4281.9,4281.8,8.37280484]
[1757177117102,0.38650612,4281.9,4281.8,10.58150484]
[1757177117503,0.38650612,4281.9,4281.8,17.0299948]
[1757177121248,0.025,4283.8,4281.9,1.93655703]
[1757177121441,0.01044306,4284.3,4284.2,2.33415806]
[1757177121752,0.025,4284.8,4284.6,2.33394015]
[1757177121753,0.4387,4284.7,4284.6,2.33394015]
[1757177121930,2.4426,4284.7,4284.6,6.42794015]
[1757177122132,2.57366556,4284.7,4284.6,6.42794015]
[1757177122332,2.4426,4284.7,4284.6,6.42794015]
[1757177123514,2.4426,4284.7,4284.6,6.59849451]
[1757177124336,2.4426,4284.7,4284.6,2.50449451]
[1757177124516,2.4426,4284.7,4284.6,6.59749451]
[1757177124717,2.4426,4284.7,4284.6,2.50449451]
[1757177125948,0.7327,4284.7,4284.6,2.50449451]
[1757177127040,0.025,4284.8,4284.7,2.33388568]
[1757177127245,0.4637,4284.8,4284.7,2.33388568]
[1757177127444,2.4676,4284.8,4284.7,2.33388568]
[1757177128217,0.7577,4284.8,4284.7,2.33388568]
[1757177129106,0.025,4284.8,4284.7,7.85252602]
[1757177129310,0.025,4284.8,4284.7,10.06122602]
[1757177129558,1e-08,4284.8,4284.7,9.60972602]
[1757177129735,1e-08,4284.8,4284.7,10.85252602]
[1757177130037,0.29400001,4284.8,4284.7,10.55142602]
[1757177130452,0.29400001,4284.8,4284.7,7.55142602]
[1757177130759,2.44260001,4284.8,4284.7,7.55142602]
[1757177130920,2.44260001,4284.8,4284.7,6.42488568]
[1757177131356,0.73270001,4284.8,4284.7,6.42488568]
[1757177131558,1e-08,4284.8,4284.7,6.72598568]
[1757177131765,1e-08,4284.8,4284.7,6.42488568]
[1757177131936,0.29400001,4284.8,4284.7,6.42488568]
[1757177132137,0.73270001,4284.8,4284.7,6.42488568]
[1757177132846,0.73270001,4284.8,4284.7,2.33388568]
[1757177133052,0.73270001,4284.8,4284.7,6.42388568]
[1757177133260,0.29400001,4284.8,4284.7,6.42388568]
[1757177133565,1e-08,4284.8,4284.7,6.42388568]
[1757177133746,1e-08,4284.8,4284.7,8.03072602]
[1757177134658,1e-08,4284.8,4284.7,9.78792602]
[1757177134867,1e-08,4284.8,4284.7,8.03072602]
[1757177135641,0.29400001,4284.8,4284.7,2.33388568]
[1757177135840,2.44260001,4284.8,4284.7,6.42288568]
[1757177136156,2.44260001,4284.8,4284.6,4.12894015]
[1757177136157,2.44260001,4284.8,4284.6,2.33393647]
[1757177136472,2.1486,4284.7,4284.6,2.33393647]
[1757177136780,2.4426,4284.7,4284.5,2.33399078]
[1757177136937,2.1486,4284.6,4284.4,6.42303951]
[1757177137271,2.1486,4284.6,4283.7,1.795]
[1757177137272,2.4426,4284.5,4283.7,1.795]
[1757177137576,1.2307,4284.4,4283.9,2.33427132]
[1757177137864,2.9406,4284.4,4283.9,2.33427132]
[1757177138178,0.294,4284.0,4283.7,4.088]
[1757177138357,2.1486,4283.9,4283.8,2.33437332]
[1757177138531,2.4426,4283.9,4283.8,2.33437332]
[1757177138733,1e-08,4284.8,4284.1,2.33418661]
[1757177138935,0.294,4284.2,4284.0,2.33426704]
[1757177139158,0.294,4284.2,4284.1,2.33421255]
[1757177139531,2.1486,4284.7,4283.9,4.088]
[1757177139532,0.792,4284.6,4283.9,4.088]
[1757177139738,2.1486,4284.7,4283.9,4.088]
[1757177139937,2.1486,4284.7,4284.5,2.33398874]
[1757177140133,2.4112,4284.6,4284.5,2.33398874]
[1757177140673,0.7592,4284.6,4284.5,2.33398874]
[1757177140971,0.2914,4284.6,4284.5,2.33398874]
[1757177141174,0.7592,4284.6,4284.5,2.33398874]
[1757177141351,2.4112,4284.6,4284.5,2.33398874]
[1757177142233,2.4112,4284.6,4284.4,2.33404511]
[1757177142437,0.4678,4284.5,4284.4,2.33404511]
[1757177142670,2.1198,4284.5,4284.4,2.33404511]
[1757177142962,2.4112,4284.5,4284.4,2.33404511]
[1757177144379,0.00100001,4284.8,4284.4,0.3001]
[1757177144535,0.00100001,4284.8,4284.7,2.33388568]
[1757177145182,0.29240001,4284.8,4284.7,2.33388568]
[1757177145503,0.00100001,4284.8,4284.7,2.33388568]
[1757177147212,0.00100001,4284.8,4284.7,2.63398568]
[1757177147413,0.00100001,4284.8,4284.7,2.33388568]
[1757177147712,0.29240001,4284.8,4284.7,2.33388568]
[1757177147916,0.00100001,4284.8,4284.7,2.33388568]
[1757177148690,0.00100001,4284.8,4284.7,2.63398568]
[1757177148889,0.00100001,4284.8,4284.7,9.31108371]
[1757177149283,0.00100001,4284.8,4284.7,9.75688371]
[1757177151200,0.00100001,4284.8,4284.7,9.97398204]
[1757177154246,0.00100001,4284.8,4284.7,9.97404875]
[1757177155518,0.29240001,4284.8,4284.7,3.45644875]
[1757177155717,0.29240001,4284.8,4284.7,2.33388568]
[1757177155918,0.29240001,4284.8,4284.7,6.41788568]
[1757177156145,0.00100001,4284.8,4284.7,2.33388568]
[1757177156346,0.00100001,4284.8,4284.7,6.41788568]
[1757177156653,0.29240001,4284.8,4284.7,7.29207371]
[1757177156854,0.29240001,4284.8,4284.7,3.20907371]
[1757177157153,2.41220001,4284.8,4284.7,2.33388568]
[1757177157362,2.41220001,4284.8,4284.7,6.41688568]
[1757177157548,2.54323535,4284.8,4284.7,6.41688568]
[1757177160472,2.54323535,4284.8,4284.7,6.41588568]
[1757177161455,0.89123535,4284.8,4284.7,6.41588568]
[1757177161662,0.00100001,4284.8,4284.7,6.71598568]
[1757177161992,0.29240001,4284.8,4284.7,6.41588568]
[1757177162289,0.00100001,4284.8,4284.7,6.41588568]
[1757177163400,0.29240001,4284.8,4284.7,6.41588568]
[1757177163570,2.41220001,4284.8,4284.7,2.33388568]
[1757177163780,2.54324065,4284.8,4284.6,0.004]
[1757177164099,0.13104064,4284.7,4284.6,0.004]
[1757177164455,2.54224064,4284.7,4284.6,0.004]
[1757177166628,3.33424064,4284.7,4284.6,0.004]
[1757177171378,2.57504064,4284.7,4284.6,0.004]
[1757177171614,0.92304064,4284.7,4284.6,2.33794015]
[1757177172134,1.21334064,4284.7,4284.6,0.004]
[1757177174001,1.66944064,4284.7,4284.6,0.004]
[1757177174201,3.37554064,4284.7,4284.6,0.004]
[1757177174402,1.21334064,4284.7,4284.6,0.004]
[1757177174942,0.42134064,4284.7,4284.6,2.33794015]
[1757177175145,0.13104064,4284.7,4284.6,2.62924015]
[1757177175344,0.00100001,4284.8,4284.7,2.33388568]
[1757177175496,0.00100001,4284.8,4284.7,2.76348568]
[1757177175730,0.00100001,4284.8,4284.7,5.66864232]
[1757177179134,4.128,4285.8,4284.7,5.66864232]
[1757177179135,0.025,4287.8,4285.1,0.792]
[1757177179364,2.1622,4287.7,4286.2,5.43996102]
[1757177179596,2.1622,4287.6,4286.1,4.077]
[1757177179786,3.0,4287.7,4285.9,4.077]
[1757177179930,2.1622,4287.5,4286.1,2.33312335]
[1757177180241,0.2903,4286.2,4284.9,1.6738]
[1757177180436,0.2903,4286.2,4286.1,2.33312335]
[1757177180636,5.8765,4286.2,4285.7,2.33333932]
[1757177180850,2.1622,4286.1,4285.8,2.33327779]
[1757177181205,2.1622,4286.1,4284.8,2.33382556]
[1757177181347,2.1622,4286.1,4285.6,2.33338585]
[1757177181666,0.69604885,4285.7,4284.6,0.004]
[1757177181830,0.69604885,4285.7,4285.3,2.33350538]
[1757177182032,0.4561,4285.6,4285.3,2.33350538]
[1757177182228,0.4561,4285.6,4285.0,0.17205845]
[1757177182439,0.2903,4285.4,4284.8,0.025]
[1757177182671,0.2903,4285.4,4285.2,2.33361052]
[1757177182847,0.4561,4285.3,4285.2,2.33361052]
[1757177183049,0.7464,4285.3,4284.8,0.025]
[1757177183356,2.1622,4285.2,4284.8,2.35881927]
[1757177183532,0.2903,4284.9,4284.8,2.35881927]
[1757177183732,6.0724,4284.9,4284.8,0.025]
[1757177183935,1.7061,4286.5,4284.8,10.88306102]
[1757177184189,0.4561,4286.4,4284.9,0.21718302]
[1757177184338,0.4561,4286.4,4284.8,2.33551087]
[1757177184339,3.5011,4286.3,4285.1,2.33366782]
[1757177184531,4.076,4286.2,4285.3,2.33355891]
[1757177184844,0.2903,4285.4,4284.8,0.025]
[1757177185044,0.69678209,4285.4,4284.8,2.35882628]
[1757177185234,0.4561,4285.3,4285.2,2.33361336]
[1757177185435,0.40648209,4285.4,4285.3,2.33355891]
[1757177185658,4.48248209,4285.4,4285.3,2.33355891]
[1757177185974,0.40648209,4285.4,4285.3,2.33355891]
[1757177186174,0.40648209,4285.4,4285.3,2.62485891]
[1757177186374,0.40648209,4285.4,4285.3,2.33355891]
[1757177186766,0.40648209,4285.4,4285.3,2.62485891]
[1757177187784,1.7061,4286.3,4285.3,2.62485891]
[1757177187785,5.842,4287.2,4285.4,0.792]
[1757177188088,0.4561,4287.6,4286.8,2.3327278]
[1757177188267,2.1622,4287.5,4287.2,2.33251916]
[1757177188456,4.135,4288.4,4287.2,2.33251916]
[1757177188457,0.2903,4287.3,4287.2,2.33251916]
[1757177188852,0.7464,4287.3,4287.2,2.33251916]
[1757177189068,2.4525,4287.3,4287.2,2.33251916]
[1757177191088,0.7464,4287.3,4287.2,2.33251916]
[1757177193577,0.7464,4287.3,4286.9,2.33267969]
[1757177193775,0.7464,4287.3,4283.8,0.029]
[1757177193776,1.7061,4287.2,4287.0,2.3326091]
[1757177193961,0.2903,4287.1,4287.0,2.33263354]
[1757177194272,0.14524354,4287.8,4287.7,2.33225272]
[1757177194481,0.14524354,4287.8,4287.7,2.62355272]
[1757177194774,0.14524354,4287.8,4287.7,2.33225272]
[1757177196459,0.14524354,4287.8,4287.7,2.62355272]
[1757177200058,0.14624354,4287.8,4287.7,2.62355272]
[1757177200781,0.45244354,4287.8,4287.7,2.33225272]
[1757177201179,0.14624354,4287.8,4287.7,2.62435272]
[1757177202082,0.45244354,4287.8,4287.7,2.33225272]
[1757177202261,0.14624354,4287.8,4287.7,2.33225272]
[1757177202662,0.14624354,4287.8,4287.7,3.06165272]
[1757177202865,0.14624354,4287.8,4287.7,3.94640175]
[1757177203067,0.14624354,4287.8,4287.7,5.67660175]
[1757177203283,0.026,4287.8,4287.7,5.67660175]
[1757177203488,0.026,4287.8,4287.7,3.50910175]
[1757177203852,0.026,4287.8,4287.7,7.62810175]
[1757177204046,0.026,4287.8,4287.7,3.50910175]
[1757177204284,0.026,4287.8,4287.7,6.74335272]
[1757177204658,0.026,4287.8,4287.7,6.44925272]
[1757177205562,0.026,4287.8,4287.7,2.33225272]
[1757177206558,0.026,4287.8,4287.7,2.62435272]
[1757177208996,0.026,4287.8,4287.7,2.33225272]
[1757177211001,0.3322,4287.8,4287.7,2.33225272]
[1757177211161,2.4147,4287.8,4287.7,2.33225272]
[1757177211796,0.779,4287.8,4287.7,2.33225272]
[1757177212499,0.3322,4287.8,4287.7,2.33225272]
[1757177213584,0.3322,4287.8,4287.4,4.104]
[1757177213984,0.026,4287.8,4287.7,2.33225272]
[1757177215185,0.3322,4287.8,4287.7,2.33225272]
[1757177215775,0.779,4287.8,4287.7,2.33225272]
[1757177216701,0.3322,4287.8,4287.7,2.33225272]
[1757177216922,0.026,4287.8,4287.7,2.33225272]
[1757177218112,3.792,4287.7,4285.6,0.2339]
[1757177218333,3.792,4287.5,4285.7,5.43283964]
[1757177218627,2.33257913,4287.1,4286.3,2.33296269]
[1757177218782,0.3062,4286.4,4286.3,2.33296269]
[1757177218982,0.753,4286.4,4286.2,2.33305417]
[1757177219183,0.3062,4286.4,4286.0,2.33317778]
[1757177219383,0.3062,4286.4,4286.3,2.33301448]
[1757177219910,0.3062,4286.4,4286.2,2.33305898]
[1757177221238,1.6357,4286.7,4286.2,2.33302385]
[1757177221438,0.4468,4286.7,4286.2,2.33301799]
[1757177221638,0.4468,4286.6,4286.2,2.33301799]
[1757177221942,0.3062,4286.3,4286.0,2.33313725]
[1757177222128,0.792,4286.0,4285.3,0.004]
[1757177222332,7.822,4285.9,4285.3,0.004]
[1757177222512,7.03,4285.9,4285.3,0.004]
[1757177222938,6.1955,4286.2,4285.5,5.43283964]
[1757177223144,8.5285723,4286.2,4285.8,0.025]
[1757177223500,0.3062,4285.9,4285.8,0.025]
[1757177224646,2.63943222,4285.9,4285.8,0.025]
[1757177224835,5.51393222,4285.9,4285.8,0.025]
[1757177225142,8.51393222,4285.9,4285.8,0.025]
[1757177226841,8.51393222,4285.9,4285.8,0.01626844]
[1757177227731,3.0,4285.8,4285.3,0.004]
[1757177227939,6.12550445,4285.4,4285.3,0.004]
[1757177228259,14.47193846,4285.4,4285.3,0.004]
[1757177228453,16.55443846,4285.4,4285.3,0.004]
[1757177229058,14.22093401,4285.4,4285.3,0.004]
[1757177229268,13.18273846,4285.4,4285.3,0.004]
[1757177229766,14.81843846,4285.4,4285.3,0.004]
[1757177229970,13.18273846,4285.4,4285.3,0.004]
[1757177230481,10.69273846,4285.4,4285.3,0.004]
[1757177230631,14.79873846,4285.4,4285.3,0.004]
[1757177230834,10.69273846,4285.4,4285.3,0.004]
[1757177231035,14.79873846,4285.4,4285.3,0.004]
[1757177231642,20.64273846,4285.4,4285.3,0.004]
[1757177231842,20.64173846,4285.4,4285.3,0.004]
[1757177232981,14.79773846,4285.4,4285.3,0.004]
[1757177233324,0.792,4284.0,4283.1,2.2075]
[1757177233610,2.33458551,4283.5,4282.8,0.4989]
[1757177233768,1.504,4283.4,4282.8,0.4989]
[1757177234104,1.504,4283.4,4283.3,0.2989]
[1757177234470,1.57564591,4283.4,4283.3,0.2989]
[1757177235616,2.33486216,4283.0,4282.8,0.025]
[1757177235839,3.92504591,4283.4,4282.8,0.025]
[1757177235840,4.109,4282.9,4282.8,0.025]
[1757177236122,7.17526656,4282.9,4282.8,0.025]
[1757177237398,9.58526656,4282.9,4282.8,0.025]
[1757177237583,12.58526656,4282.9,4282.8,0.025]
[1757177237902,12.58526656,4282.9,4282.8,0.029]
[1757177238216,0.07164591,4283.4,4282.8,2.0615]
[1757177238505,0.07164591,4283.4,4283.3,2.33464851]
[1757177238884,0.07164591,4283.4,4283.3,2.63354851]
[1757177239082,0.07164591,4283.4,4283.3,4.84104851]
[1757177244020,0.07164591,4283.4,4283.3,3.10744851]
[1757177244317,0.07164591,4283.4,4283.3,4.84104851]
[1757177244479,0.07164591,4283.4,4283.3,4.36714851]
[1757177244813,0.07164591,4283.4,4283.3,4.84104851]
[1757177245122,2.42104591,4283.4,4282.9,2.33485927]
[1757177245284,0.07164591,4283.4,4283.3,2.63354851]
[1757177245621,0.07164591,4283.4,4283.3,0.2989]
[1757177245823,0.07164591,4283.4,4283.1,2.33474956]
[1757177245996,0.36144591,4283.4,4282.9,2.33484604]
[1757177246523,3.12671263,4283.2,4282.8,0.029]
[1757177246729,0.40223401,4285.4,4283.1,10.78622633]
[1757177246878,0.40223401,4285.4,4283.6,0.792]
[1757177247083,0.40223401,4285.4,4283.8,3.0]
[1757177247428,0.40223401,4285.4,4283.9,2.65872023]
[1757177247635,0.40223401,4285.4,4285.0,2.33370849]
[1757177247837,0.40223401,4285.4,4284.4,1.7336]
[1757177248038,0.40223401,4285.4,4283.8,2.33437523]
[1757177248039,0.40223401,4285.4,4285.3,2.33355891]
[1757177248236,0.69203401,4285.4,4285.0,2.33368424]
[1757177248446,0.69203401,4285.4,4284.4,1.7336]
[1757177248625,0.69203401,4285.4,4284.5,3.08815416]
[1757177248940,0.69203401,4285.4,4284.6,2.33394015]
[1757177249124,0.40223401,4285.4,4284.6,2.33394015]
[1757177249298,0.40223401,4285.4,4285.3,2.63245891]
[1757177249498,0.40223401,4285.4,4285.3,4.36605891]
[1757177252309,0.40223401,4285.4,4285.3,2.63245891]
[1757177252511,0.40223401,4285.4,4285.3,2.33355891]
[1757177252847,4.54663401,4285.4,4283.8,1.7336]
[1757177253014,2.33361336,4285.2,4284.1,2.33421255]
[1757177253347,2.33361336,4285.2,4284.3,2.33405171]
[1757177253718,2.33361336,4285.2,4283.9,0.49211407]
[1757177254035,2.77531866,4285.1,4284.2,2.33411691]
[1757177254558,2.33379762,4284.9,4283.8,1.7336]
[1757177254743,0.4416,4284.8,4284.0,2.3342167]
[1757177254914,4.251,4284.7,4284.2,2.33415453]
[1757177255254,0.4416,4284.6,4284.1,2.33420652]
[1757177256863,6.046,4284.7,4284.2,2.33411509]
[1757177257358,4.244,4284.6,4284.1,2.33420823]
[1757177257555,4.244,4284.6,4283.5,2.2075]
[1757177257760,4.244,4284.6,4284.2,2.33414145]
[1757177258541,1.795,4284.7,4284.2,1.7336]
[1757177258542,4.242,4284.5,4284.2,1.7336]
[1757177258752,4.242,4284.5,4284.3,2.33405488]
[1757177259658,4.242,4284.5,4284.4,2.3340491]
[1757177259853,4.5318,4284.5,4283.7,2.33443051]
[1757177260053,0.4332,4284.4,4284.0,2.33426626]
[1757177260254,0.3005,4284.1,4283.2,1.7681]
[1757177260457,0.3005,4284.1,4283.9,2.33430721]
[1757177260669,0.7337,4284.1,4283.1,2.33475139]
[1757177260964,4.235,4284.0,4283.7,2.33438538]
[1757177261166,4.235,4284.0,4283.7,2.33439398]
[1757177261366,4.235,4284.0,4283.8,2.33436334]
[1757177261771,2.5287,4283.9,4282.9,1.94389613]
[1757177261953,2.5287,4283.9,4283.3,2.33464523]
[1757177262138,2.5287,4283.9,4283.4,2.33458519]
[1757177262471,2.0955,4283.9,4283.5,2.33448603]
[1757177262642,2.0955,4283.9,4283.6,2.33446801]
[1757177263870,2.0955,4283.9,4283.6,2.33447601]
[1757177264051,2.0955,4283.9,4283.5,2.33452762]
[1757177264246,2.0955,4283.9,4283.4,2.33458542]
[1757177264583,4.23,4283.8,4282.9,0.62815868]
[1757177264770,4.23,4283.8,4283.7,2.33443051]
[1757177265886,4.5305,4283.8,4283.7,2.33443051]
[1757177266192,4.9637,4283.8,4283.0,1.7681]
[1757177266354,4.9637,4283.8,4283.7,2.33443051]
[1757177266553,4.23,4283.8,4283.7,2.33443051]
[1757177268675,4.23,4283.8,4283.6,2.3344827]
[1757177268676,4.5305,4283.8,4283.6,2.3344827]
[1757177269294,4.9637,4283.8,4283.5,2.33453866]
[1757177269599,0.4332,4283.7,4283.0,1.7681]
[1757177269754,0.4332,4283.7,4283.1,0.47592521]
[1757177269949,4.23,4283.8,4283.7,2.33443051]
[1757177270156,4.5305,4283.8,4283.6,2.33447233]
[1757177270488,4.9637,4283.8,4283.5,2.33452738]
[1757177270669,4.9637,4283.8,4283.6,2.33446545]
[1757177271089,4.9637,4283.8,4283.7,2.33443051]
[1757177271813,4.9637,4283.8,4283.6,2.33447234]
[1757177272181,4.9637,4283.8,4283.7,2.33443051]
[1757177273509,4.9637,4283.8,4283.6,2.33447331]
[1757177274206,4.9637,4283.8,4283.4,2.3345903]
[1757177274207,4.9637,4283.8,4283.7,2.33443051]
[1757177274407,4.5305,4283.8,4283.7,2.33443051]
[1757177274910,0.3005,4283.8,4283.0,1.7721]
[1757177275115,4.201,4283.7,4283.1,2.33475753]
[1757177275407,4.201,4283.7,4283.3,2.33461226]
[1757177275611,4.201,4283.7,4283.0,1.7721]
[1757177275612,4.201,4283.7,4283.4,2.33458043]
[1757177276173,4.6342,4283.7,4283.1,2.33475753]
[1757177276716,4.6342,4283.7,4283.2,2.33469746]
[1757177276909,4.201,4283.7,4283.2,2.33469746]
[1757177277135,0.3005,4283.3,4283.1,2.33475183]
[1757177277317,4.202,4283.2,4283.1,2.33475183]
[1757177278186,4.9357,4283.2,4283.1,2.33475183]
[1757177278624,4.9357,4283.2,4283.0,2.33878799]
[1757177278780,4.5025,4283.2,4283.0,2.33878799]
[1757177279113,4.5025,4283.2,4283.1,2.33475753]
[1757177279694,4.202,4283.2,4283.1,2.33475753]
[1757177281332,4.202,4283.2,4283.0,0.004]
[1757177281527,4.202,4283.2,4283.0,2.33880425]
[1757177281910,4.202,4283.2,4283.1,2.33475753]
[1757177282628,4.5025,4283.2,4283.0,0.004]
[1757177283025,0.4332,4283.1,4283.0,0.004]
[1757177283423,4.1916,4283.1,4283.0,0.004]
[1757177284130,2.5287,4283.1,4283.0,0.004]
[1757177284295,5.976,4283.1,4283.0,2.0734]
[1757177284500,6.2765,4283.1,4283.0,0.004]
[1757177284938,8.3726,4283.1,4283.0,0.004]
[1757177285840,10.70735753,4283.1,4283.0,0.004]
[1757177286135,8.3726,4283.1,4283.0,0.004]
[1757177287537,6.2725,4283.1,4283.0,0.004]
[1757177287837,6.7057,4283.1,4283.0,0.004]
[1757177288034,8.3686,4283.1,4283.0,0.004]
[1757177290137,10.70335753,4283.1,4283.0,0.004]
[1757177291712,13.70335753,4283.1,4283.0,0.004]
[1757177293338,14.49535753,4283.1,4283.0,0.004]
[1757177302265,2.33539699,4282.0,4281.4,1.6221]
[1757177302449,12.06841184,4281.9,4280.9,0.4645]
[1757177302654,12.83491184,4281.9,4280.9,0.004]
[1757177303282,12.83491184,4281.9,4281.1,1.6221]
[1757177303963,12.38431184,4281.9,4281.1,1.6221]
[1757177304545,12.38431184,4281.9,4281.1,3.95793498]
[1757177304780,12.06841184,4281.9,4281.8,0.322]
[1757177305146,7.92341184,4281.9,4281.8,0.322]
[1757177305351,12.06441184,4281.9,4281.8,0.029]
[1757177305547,12.38031184,4281.9,4281.8,0.029]
[1757177306193,12.06441184,4281.9,4281.8,0.029]
[1757177306565,9.729,4281.9,4281.8,0.322]
[1757177307101,12.06441184,4281.9,4281.8,0.322]
[1757177308589,12.06441184,4281.9,4281.8,0.029]
[1757177308986,9.729,4281.9,4281.8,0.029]
[1757177309178,12.06441184,4281.9,4281.8,0.322]
[1757177309377,12.06441184,4281.9,4281.8,0.029]
[1757177309700,12.38031184,4281.9,4281.8,0.029]
[1757177310367,12.83091184,4281.9,4281.8,0.029]
[1757177312104,7.92341184,4281.9,4281.8,0.029]
[1757177312303,12.05141184,4281.9,4281.8,0.322]
[1757177312503,12.36731184,4281.9,4281.8,0.029]
[1757177317308,9.716,4281.9,4281.8,1.9441]
[1757177317620,12.05141184,4281.9,4281.8,0.322]
[1757177318337,12.05141184,4281.9,4281.8,0.029]
[1757177318554,12.36731184,4281.9,4281.8,0.029]
[1757177318902,1.796,4281.9,4281.8,2.4046]
[1757177319133,5.91,4281.9,4281.8,2.4046]
[1757177319731,5.91,4281.9,4281.8,4.74006639]
[1757177320043,5.91,4281.9,4281.8,2.4046]
[1757177320343,5.91,4281.9,4281.8,0.331]
[1757177320506,5.91,4281.9,4281.8,1.9555]
[1757177323549,5.91,4281.9,4281.8,0.331]
[1757177323759,5.91,4281.9,4281.8,0.029]
[1757177324251,5.91,4281.9,4281.8,0.331]
[1757177325658,5.91,4281.9,4281.8,1.9555]
[1757177326778,5.91,4281.9,4281.8,0.331]
[1757177327290,6.2211,4281.9,4281.8,0.029]
[1757177328839,10.0131,4281.9,4281.8,0.029]
[1757177329039,14.34251184,4281.9,4281.8,0.029]
[1757177329244,9.79101184,4281.9,4281.8,0.029]
[1757177329568,11.34251184,4281.9,4281.8,0.029]
[1757177329769,9.79101184,4281.9,4281.8,0.029]
[1757177330582,11.34251184,4281.9,4281.8,0.029]
[1757177330780,18.37251184,4281.9,4281.8,0.029]
[1757177334205,21.37251184,4281.9,4281.8,0.029]
[1757177337876,21.37251184,4281.9,4281.8,1e-08]
[1757177338905,6.12768458,4281.4,4281.3,0.004]
[1757177339108,23.51236345,4281.4,4281.3,0.004]